[Event "Titled Tuesday Blitz November 08 Early 2022"]
[White "Ronka, Erik"]
[Black "Kozak, Antoni"]
[WhiteFideId "505080"]
[BlackFideId "21832030"]
[WhiteElo "2264"]
[BlackElo "2447"]
[Result "1-0"]
[Round "03"]
[TimeControl "180+1"]
[Date "2022.11.09"]
[WhiteClock "0:00:12"]
[BlackClock "0:00:08"]

1. e4 {[%clk 0:03:00]}  c5 {[%clk 0:02:57]} 2. Nf3 {[%clk 0:03:01]}  d6 {[%clk 0:02:55]} 3. d4 {[%clk 0:03:01]}  cxd4 {[%clk 0:02:55]} 4. Nxd4 {[%clk 0:03:02]}  Nf6 {[%clk 0:02:56]} 5. Nc3 {[%clk 0:03:03]}  a6 {[%clk 0:02:56]} 6. Be3 {[%clk 0:03:03]}  e5 {[%clk 0:02:54]} 7. Nb3 {[%clk 0:03:03]}  Be6 {[%clk 0:02:54]} 8. f3 {[%clk 0:03:03]}  h5 {[%clk 0:02:53]} 9. Nd5 {[%clk 0:03:02]}  Bxd5 {[%clk 0:02:50]} 10. exd5 {[%clk 0:03:03]}  Nbd7 {[%clk 0:02:50]} 11. Qd2 {[%clk 0:03:02]}  g6 {[%clk 0:02:49]} 12. O-O-O {[%clk 0:02:59]}  Nb6 {[%clk 0:02:46]} 13. Kb1 {[%clk 0:02:58]}  Nfxd5 {[%clk 0:02:28]} 14. Bf2 {[%clk 0:02:57]}  Be7 {[%clk 0:02:15]} 15. Qa5 {[%clk 0:02:36]}  Bg5 {[%clk 0:01:51]} 16. Rxd5 {[%clk 0:02:25]}  Nxd5 {[%clk 0:01:49]} 17. Qxd5 {[%clk 0:02:25]}  O-O {[%clk 0:01:44]} 18. Bd3 {[%clk 0:02:23]}  b5 {[%clk 0:01:40]} 19. Bxg6 {[%clk 0:02:17]}  h4 {[%clk 0:01:33]} 20. Bf5 {[%clk 0:02:04]}  a5 {[%clk 0:01:32]} 21. Nd2 {[%clk 0:02:03]}  Qf6 {[%clk 0:01:25]} 22. Bg4 {[%clk 0:01:57]}  Bxd2 {[%clk 0:01:24]} 23. Qxd2 {[%clk 0:01:57]}  b4 {[%clk 0:01:15]} 24. Qd5 {[%clk 0:01:39]}  a4 {[%clk 0:01:09]} 25. Be1 {[%clk 0:01:07]}  b3 {[%clk 0:01:07]} 26. Bc3 {[%clk 0:01:01]}  Qg6 {[%clk 0:00:53]} 27. Qd3 {[%clk 0:00:54]}  f5 {[%clk 0:00:50]} 28. Bh3 {[%clk 0:00:43]}  bxa2+ {[%clk 0:00:35]} 29. Kxa2 {[%clk 0:00:40]}  Qe6+ {[%clk 0:00:26]} 30. Ka1 {[%clk 0:00:38]}  a3 {[%clk 0:00:24]} 31. b3 {[%clk 0:00:38]}  Rac8 {[%clk 0:00:24]} 32. g4 {[%clk 0:00:30]}  f4 {[%clk 0:00:13]} 33. Rd1 {[%clk 0:00:20]}  Rc6 {[%clk 0:00:13]} 34. g5 {[%clk 0:00:17]}  Qxh3 {[%clk 0:00:10]} 35. Qd5+ {[%clk 0:00:17]}  Kg7 {[%clk 0:00:09]} 36. Qxc6 {[%clk 0:00:17]}  Rc8 {[%clk 0:00:09]} 37. Qxd6 {[%clk 0:00:13]}  Rxc3 {[%clk 0:00:10]} 38. Qxe5+ {[%clk 0:00:13]}  Kg6 {[%clk 0:00:08]} 39. Qf6+ {[%clk 0:00:13]}  Kh5 {[%clk 0:00:08]} 40. Qh6# {[%clk 0:00:12]} 1-0


[Site "https://www.chess.com"]

[Event "Titled Tuesday Blitz November 08 Early 2022"]
[White "Rose, Felix"]
[Black "Grigorov, Grigor"]
[WhiteFideId "5105722"]
[BlackFideId "2907313"]
[WhiteElo "2039"]
[BlackElo "2510"]
[Result "0-1"]
[Round "03"]
[TimeControl "180+1"]
[Date "2022.11.09"]
[WhiteClock "0:00:09"]
[BlackClock "0:01:25"]

1. e4 {[%clk 0:03:00]}  c6 {[%clk 0:02:59]} 2. d4 {[%clk 0:02:59]}  d5 {[%clk 0:02:59]} 3. e5 {[%clk 0:03:00]}  Bf5 {[%clk 0:02:59]} 4. h4 {[%clk 0:03:00]}  h5 {[%clk 0:02:58]} 5. Bd3 {[%clk 0:03:00]}  Bxd3 {[%clk 0:02:57]} 6. Qxd3 {[%clk 0:03:01]}  Qa5+ {[%clk 0:02:58]} 7. Nd2 {[%clk 0:03:01]}  e6 {[%clk 0:02:57]} 8. Nf3 {[%clk 0:03:00]}  Nh6 {[%clk 0:02:55]} 9. O-O {[%clk 0:02:58]}  Nf5 {[%clk 0:02:55]} 10. c4 {[%clk 0:02:52]}  Be7 {[%clk 0:02:52]} 11. g3 {[%clk 0:02:52]}  Nd7 {[%clk 0:02:51]} 12. cxd5 {[%clk 0:02:32]}  Qxd5 {[%clk 0:02:47]} 13. Rd1 {[%clk 0:02:03]}  c5 {[%clk 0:02:43]} 14. Qe4 {[%clk 0:01:35]}  cxd4 {[%clk 0:02:37]} 15. Qxd5 {[%clk 0:01:35]}  exd5 {[%clk 0:02:37]} 16. Nb3 {[%clk 0:01:35]}  Nc5 {[%clk 0:02:28]} 17. Nbxd4 {[%clk 0:01:25]}  Nxd4 {[%clk 0:02:28]} 18. Rxd4 {[%clk 0:01:24]}  O-O-O {[%clk 0:02:24]} 19. Bg5 {[%clk 0:01:20]}  Bxg5 {[%clk 0:02:19]} 20. Nxg5 {[%clk 0:01:20]}  Ne6 {[%clk 0:02:19]} 21. Rd2 {[%clk 0:00:50]}  Nxg5 {[%clk 0:02:15]} 22. hxg5 {[%clk 0:00:51]}  Rd7 {[%clk 0:02:11]} 23. Rc1+ {[%clk 0:00:41]}  Kb8 {[%clk 0:02:11]} 24. Rcd1 {[%clk 0:00:36]}  Rhd8 {[%clk 0:02:10]} 25. g6 {[%clk 0:00:32]}  fxg6 {[%clk 0:02:09]} 26. e6 {[%clk 0:00:31]}  Re7 {[%clk 0:02:06]} 27. Rxd5 {[%clk 0:00:31]}  Rxd5 {[%clk 0:02:06]} 28. Rxd5 {[%clk 0:00:32]}  Rxe6 {[%clk 0:02:06]} 29. Rd7 {[%clk 0:00:29]}  a5 {[%clk 0:01:45]} 30. Rxg7 {[%clk 0:00:16]}  a4 {[%clk 0:01:44]} 31. Kg2 {[%clk 0:00:10]}  Ka7 {[%clk 0:01:40]} 32. Kf3 {[%clk 0:00:09]}  Kb6 {[%clk 0:01:37]} 33. Kf4 {[%clk 0:00:08]}  Rf6+ {[%clk 0:01:35]} 34. Kg5 {[%clk 0:00:07]}  Rxf2 {[%clk 0:01:35]} 35. Rxg6+ {[%clk 0:00:08]}  Kc5 {[%clk 0:01:35]} 36. b3 {[%clk 0:00:08]}  a3 {[%clk 0:01:32]} 37. b4+ {[%clk 0:00:06]}  Kb5 {[%clk 0:01:28]} 38. Rg7 {[%clk 0:00:07]}  b6 {[%clk 0:01:28]} 39. Kxh5 {[%clk 0:00:07]}  Rxa2 {[%clk 0:01:27]} 40. Ra7 {[%clk 0:00:08]}  Kxb4 {[%clk 0:01:27]} 41. g4 {[%clk 0:00:07]}  Rh2+ {[%clk 0:01:26]} 42. Kg6 {[%clk 0:00:08]}  a2 {[%clk 0:01:27]} 43. g5 {[%clk 0:00:08]}  Kb3 {[%clk 0:01:26]} 44. Kg7 {[%clk 0:00:08]}  Kb2 {[%clk 0:01:25]} 45. g6 {[%clk 0:00:09]}  a1=Q {[%clk 0:01:26]} 46. Rxa1 {[%clk 0:00:09]}  Kxa1 {[%clk 0:01:25]} 0-1


[Site "https://www.chess.com"]

[Event "Titled Tuesday Blitz November 08 Early 2022"]
[White "Sala, Giulia"]
[Black "Streltsov, Alexey"]
[WhiteFideId "2840451"]
[BlackFideId "24104434"]
[WhiteElo "1769"]
[BlackElo "2558"]
[Result "0-1"]
[Round "03"]
[TimeControl "180+1"]
[Date "2022.11.09"]
[WhiteClock "0:00:17"]
[BlackClock "0:00:25"]

1. e4 {[%clk 0:02:58]}  c6 {[%clk 0:02:59]} 2. d4 {[%clk 0:02:56]}  d5 {[%clk 0:03:00]} 3. exd5 {[%clk 0:02:56]}  cxd5 {[%clk 0:03:01]} 4. Bd3 {[%clk 0:02:56]}  Nc6 {[%clk 0:03:01]} 5. c3 {[%clk 0:02:55]}  Nf6 {[%clk 0:03:01]} 6. Nf3 {[%clk 0:02:56]}  Bg4 {[%clk 0:03:01]} 7. h3 {[%clk 0:02:55]}  Bh5 {[%clk 0:03:01]} 8. O-O {[%clk 0:02:54]}  e6 {[%clk 0:03:01]} 9. Bf4 {[%clk 0:02:53]}  Bd6 {[%clk 0:03:01]} 10. Bxd6 {[%clk 0:02:52]}  Qxd6 {[%clk 0:03:02]} 11. Nbd2 {[%clk 0:02:52]}  Bg6 {[%clk 0:03:02]} 12. Qc2 {[%clk 0:02:51]}  Rc8 {[%clk 0:03:02]} 13. Bxg6 {[%clk 0:02:50]}  hxg6 {[%clk 0:03:03]} 14. Rae1 {[%clk 0:02:49]}  Qf4 {[%clk 0:02:54]} 15. Re3 {[%clk 0:02:46]}  Kf8 {[%clk 0:02:48]} 16. Rfe1 {[%clk 0:02:44]}  Nxd4 {[%clk 0:02:39]} 17. Nxd4 {[%clk 0:02:43]}  Qxd4 {[%clk 0:02:38]} 18. Nf3 {[%clk 0:02:38]}  Qf4 {[%clk 0:02:29]} 19. Qb3 {[%clk 0:02:33]}  b6 {[%clk 0:02:16]} 20. Nd4 {[%clk 0:02:33]}  Kg8 {[%clk 0:02:12]} 21. Rf3 {[%clk 0:02:29]}  Qg5 {[%clk 0:02:10]} 22. Qa4 {[%clk 0:02:18]}  Qd2 {[%clk 0:01:58]} 23. Re2 {[%clk 0:02:12]}  Qc1+ {[%clk 0:01:56]} 24. Kh2 {[%clk 0:02:08]}  Ng4+ {[%clk 0:01:48]} 25. Kg3 {[%clk 0:02:08]}  Qh6 {[%clk 0:01:25]} 26. Nxe6 {[%clk 0:01:00]}  Qh4+ {[%clk 0:01:19]} 27. Kf4 {[%clk 0:00:59]}  Ne5+ {[%clk 0:00:46]} 28. g4 {[%clk 0:00:57]}  Rc4+ {[%clk 0:00:47]} 29. Qxc4 {[%clk 0:00:51]}  Nxc4 {[%clk 0:00:47]} 30. Ng5 {[%clk 0:00:45]}  Nd6 {[%clk 0:00:45]} 31. Rfe3 {[%clk 0:00:42]}  Kf8 {[%clk 0:00:36]} 32. Nf3 {[%clk 0:00:37]}  Qxh3 {[%clk 0:00:28]} 33. Ke5 {[%clk 0:00:32]}  Nc4+ {[%clk 0:00:25]} 34. Kxd5 {[%clk 0:00:31]}  Nxe3+ {[%clk 0:00:26]} 35. Rxe3 {[%clk 0:00:31]}  Qxg4 {[%clk 0:00:26]} 36. Kc6 {[%clk 0:00:30]}  Rh5 {[%clk 0:00:26]} 37. Ne5 {[%clk 0:00:29]}  Rxe5 {[%clk 0:00:24]} 38. Rxe5 {[%clk 0:00:30]}  Qf3+ {[%clk 0:00:24]} 39. Rd5 {[%clk 0:00:30]}  g5 {[%clk 0:00:24]} 40. Kd6 {[%clk 0:00:30]}  g4 {[%clk 0:00:24]} 41. Rd4 {[%clk 0:00:22]}  g6 {[%clk 0:00:23]} 42. Kc7 {[%clk 0:00:20]}  f5 {[%clk 0:00:21]} 43. Kb8 {[%clk 0:00:18]}  Qxf2 {[%clk 0:00:21]} 44. Kxa7 {[%clk 0:00:17]}  g3 {[%clk 0:00:22]} 45. Kxb6 {[%clk 0:00:17]}  g2 {[%clk 0:00:23]} 46. a4 {[%clk 0:00:17]}  g1=Q {[%clk 0:00:23]} 47. a5 {[%clk 0:00:17]}  Qxd4+ {[%clk 0:00:23]} 48. cxd4 {[%clk 0:00:17]}  Qxd4+ {[%clk 0:00:24]} 49. Kb5 {[%clk 0:00:17]}  Qxb2+ {[%clk 0:00:25]} 50. Kc6 {[%clk 0:00:17]}  Qa3 {[%clk 0:00:25]} 0-1


[Site "https://www.chess.com"]

[Event "Titled Tuesday Blitz November 08 Early 2022"]
[White "Samunenkov, Ihor"]
[Black "Kollars, Dmitrij"]
[WhiteFideId "14187086"]
[BlackFideId "12909572"]
[WhiteElo "2441"]
[BlackElo "2584"]
[Result "0-1"]
[Round "03"]
[TimeControl "180+1"]
[Date "2022.11.08"]
[WhiteClock "0:00:17"]
[BlackClock "0:00:41"]

1. d4 {[%clk 0:03:00]}  Nf6 {[%clk 0:02:58]} 2. c4 {[%clk 0:03:01]}  e6 {[%clk 0:02:57]} 3. Nf3 {[%clk 0:03:01]}  b6 {[%clk 0:02:58]} 4. g3 {[%clk 0:03:02]}  Ba6 {[%clk 0:02:58]} 5. Qa4 {[%clk 0:03:00]}  Bb7 {[%clk 0:02:57]} 6. Bg2 {[%clk 0:03:00]}  c5 {[%clk 0:02:57]} 7. dxc5 {[%clk 0:03:01]}  bxc5 {[%clk 0:02:55]} 8. O-O {[%clk 0:03:01]}  Be7 {[%clk 0:02:55]} 9. Nc3 {[%clk 0:03:01]}  O-O {[%clk 0:02:55]} 10. Rd1 {[%clk 0:03:02]}  d6 {[%clk 0:02:52]} 11. Be3 {[%clk 0:02:27]}  Nbd7 {[%clk 0:02:38]} 12. Bf4 {[%clk 0:02:23]}  Qb6 {[%clk 0:02:31]} 13. Rab1 {[%clk 0:02:13]}  a5 {[%clk 0:01:50]} 14. a3 {[%clk 0:01:47]}  Rfd8 {[%clk 0:01:48]} 15. Qc2 {[%clk 0:01:43]}  Nf8 {[%clk 0:01:35]} 16. e4 {[%clk 0:01:41]}  e5 {[%clk 0:01:30]} 17. Bg5 {[%clk 0:01:22]}  Ne6 {[%clk 0:01:27]} 18. Nd5 {[%clk 0:01:09]}  Nxd5 {[%clk 0:01:14]} 19. exd5 {[%clk 0:01:09]}  Nxg5 {[%clk 0:01:13]} 20. Nd2 {[%clk 0:01:02]}  h6 {[%clk 0:01:08]} 21. Re1 {[%clk 0:00:51]}  Qc7 {[%clk 0:01:00]} 22. h4 {[%clk 0:00:37]}  Nh7 {[%clk 0:01:00]} 23. Qf5 {[%clk 0:00:37]}  Bc8 {[%clk 0:00:58]} 24. Qh5 {[%clk 0:00:37]}  Nf6 {[%clk 0:00:55]} 25. Qf3 {[%clk 0:00:37]}  a4 {[%clk 0:00:52]} 26. Bf1 {[%clk 0:00:35]}  Bg4 {[%clk 0:00:50]} 27. Qc3 {[%clk 0:00:34]}  Bf5 {[%clk 0:00:50]} 28. Rbc1 {[%clk 0:00:31]}  Qd7 {[%clk 0:00:49]} 29. f3 {[%clk 0:00:30]}  h5 {[%clk 0:00:47]} 30. Be2 {[%clk 0:00:26]}  g6 {[%clk 0:00:47]} 31. Kh2 {[%clk 0:00:24]}  Bf8 {[%clk 0:00:47]} 32. Rg1 {[%clk 0:00:22]}  Bh6 {[%clk 0:00:47]} 33. Rcf1 {[%clk 0:00:19]}  Rab8 {[%clk 0:00:44]} 34. Bd1 {[%clk 0:00:19]}  Qb7 {[%clk 0:00:42]} 35. g4 {[%clk 0:00:17]}  Qxb2 {[%clk 0:00:41]} 0-1


[Site "https://www.chess.com"]

[Event "Titled Tuesday Blitz November 08 Early 2022"]
[White "Starosta, Martyna"]
[Black "Sourath Biswas"]
[WhiteFideId "21818754"]
[BlackFideId "35091484"]
[WhiteElo "1825"]
[BlackElo "2164"]
[Result "1-0"]
[Round "03"]
[TimeControl "180+1"]
[Date "2022.11.09"]
[WhiteClock "0:01:23"]
[BlackClock "0:00:17"]

1. e4 {[%clk 0:03:00]}  c6 {[%clk 0:02:55]} 2. d4 {[%clk 0:03:00]}  d5 {[%clk 0:02:56]} 3. Nc3 {[%clk 0:02:59]}  dxe4 {[%clk 0:02:56]} 4. Nxe4 {[%clk 0:03:00]}  Nf6 {[%clk 0:02:54]} 5. Nxf6+ {[%clk 0:03:00]}  exf6 {[%clk 0:02:55]} 6. c3 {[%clk 0:03:01]}  Bd6 {[%clk 0:02:54]} 7. Bd3 {[%clk 0:02:59]}  O-O {[%clk 0:02:54]} 8. Qc2 {[%clk 0:03:00]}  Re8+ {[%clk 0:02:55]} 9. Ne2 {[%clk 0:03:00]}  h5 {[%clk 0:02:56]} 10. O-O {[%clk 0:02:59]}  Nd7 {[%clk 0:02:45]} 11. Bd2 {[%clk 0:02:56]}  Nf8 {[%clk 0:02:45]} 12. Rae1 {[%clk 0:02:56]}  Qc7 {[%clk 0:02:38]} 13. h3 {[%clk 0:02:53]}  Be6 {[%clk 0:02:33]} 14. f4 {[%clk 0:02:52]}  Qb6 {[%clk 0:01:31]} 15. c4 {[%clk 0:02:40]}  Bb4 {[%clk 0:01:19]} 16. Bxb4 {[%clk 0:02:25]}  Qxb4 {[%clk 0:01:18]} 17. a3 {[%clk 0:02:16]}  Qd6 {[%clk 0:01:17]} 18. f5 {[%clk 0:02:11]}  Bd7 {[%clk 0:01:15]} 19. Qc3 {[%clk 0:02:05]}  Re3 {[%clk 0:01:12]} 20. c5 {[%clk 0:02:03]}  Qe7 {[%clk 0:01:08]} 21. Nf4 {[%clk 0:01:49]}  Re8 {[%clk 0:01:08]} 22. Kf2 {[%clk 0:01:50]}  g5 {[%clk 0:00:26]} 23. fxg6 {[%clk 0:01:46]}  fxg6 {[%clk 0:00:26]} 24. Qd2 {[%clk 0:01:42]}  Rxe1 {[%clk 0:00:26]} 25. Rxe1 {[%clk 0:01:43]}  Qxe1+ {[%clk 0:00:26]} 26. Qxe1 {[%clk 0:01:44]}  Rxe1 {[%clk 0:00:27]} 27. Kxe1 {[%clk 0:01:45]}  Kf7 {[%clk 0:00:28]} 28. b4 {[%clk 0:01:37]}  h4 {[%clk 0:00:25]} 29. Bc4+ {[%clk 0:01:36]}  Ne6 {[%clk 0:00:24]} 30. d5 {[%clk 0:01:25]}  cxd5 {[%clk 0:00:13]} 31. Bxd5 {[%clk 0:01:26]}  b6 {[%clk 0:00:10]} 32. c6 {[%clk 0:01:23]}  Bc8 {[%clk 0:00:10]} 33. c7 {[%clk 0:01:20]}  Ke7 {[%clk 0:00:09]} 34. Bxe6 {[%clk 0:01:16]}  Bxe6 {[%clk 0:00:08]} 35. Nxe6 {[%clk 0:01:17]}  Kd7 {[%clk 0:00:08]} 36. Nf8+ {[%clk 0:01:17]}  Kxc7 {[%clk 0:00:09]} 37. Nxg6 {[%clk 0:01:18]}  Kc6 {[%clk 0:00:09]} 38. Kd2 {[%clk 0:01:18]}  Kb5 {[%clk 0:00:10]} 39. Kc3 {[%clk 0:01:18]}  Ka4 {[%clk 0:00:11]} 40. Kb2 {[%clk 0:01:19]}  a5 {[%clk 0:00:11]} 41. bxa5 {[%clk 0:01:19]}  bxa5 {[%clk 0:00:09]} 42. Nxh4 {[%clk 0:01:20]}  Kb5 {[%clk 0:00:10]} 43. Nf3 {[%clk 0:01:21]}  Kc5 {[%clk 0:00:11]} 44. Kc3 {[%clk 0:01:21]}  Kd5 {[%clk 0:00:12]} 45. Kd3 {[%clk 0:01:21]}  Ke6 {[%clk 0:00:12]} 46. g4 {[%clk 0:01:22]}  f5 {[%clk 0:00:13]} 47. Kd4 {[%clk 0:01:22]}  Kf6 {[%clk 0:00:14]} 48. Ke3 {[%clk 0:01:21]}  Kg6 {[%clk 0:00:15]} 49. Kf4 {[%clk 0:01:21]}  fxg4 {[%clk 0:00:16]} 50. hxg4 {[%clk 0:01:22]}  Kf6 {[%clk 0:00:16]} 51. g5+ {[%clk 0:01:22]}  Kg6 {[%clk 0:00:17]} 52. Ne5+ {[%clk 0:01:23]} 1-0


[Site "https://www.chess.com"]

[Event "Titled Tuesday Blitz November 08 Early 2022"]
[White "Storey, Charles H"]
[Black "Al-Tarboush, Ward"]
[WhiteFideId "406686"]
[BlackFideId "7601450"]
[WhiteElo "2252"]
[BlackElo "2273"]
[Result "1/2-1/2"]
[Round "03"]
[TimeControl "180+1"]
[Date "2022.11.09"]
[WhiteClock "0:00:07"]
[BlackClock "0:00:12"]

1. c4 {[%clk 0:02:56]}  c5 {[%clk 0:02:59]} 2. g3 {[%clk 0:02:55]}  Nc6 {[%clk 0:03:00]} 3. Bg2 {[%clk 0:02:55]}  g6 {[%clk 0:03:01]} 4. Nc3 {[%clk 0:02:53]}  Bg7 {[%clk 0:03:01]} 5. Rb1 {[%clk 0:02:54]}  a6 {[%clk 0:03:00]} 6. a3 {[%clk 0:02:54]}  Rb8 {[%clk 0:03:00]} 7. b4 {[%clk 0:02:53]}  cxb4 {[%clk 0:03:01]} 8. axb4 {[%clk 0:02:53]}  b5 {[%clk 0:03:02]} 9. cxb5 {[%clk 0:02:53]}  axb5 {[%clk 0:03:02]} 10. Nf3 {[%clk 0:02:52]}  d5 {[%clk 0:03:02]} 11. O-O {[%clk 0:02:50]}  Bf5 {[%clk 0:03:00]} 12. Rb3 {[%clk 0:02:44]}  d4 {[%clk 0:02:57]} 13. Nb1 {[%clk 0:02:27]}  Be6 {[%clk 0:02:42]} 14. Rb2 {[%clk 0:02:20]}  d3 {[%clk 0:02:41]} 15. Ng5 {[%clk 0:02:17]}  Bd5 {[%clk 0:02:36]} 16. e4 {[%clk 0:02:14]}  Bc4 {[%clk 0:02:29]} 17. Nc3 {[%clk 0:02:04]}  Nd4 {[%clk 0:02:28]} 18. f4 {[%clk 0:01:42]}  Ne2+ {[%clk 0:02:27]} 19. Kh1 {[%clk 0:01:38]}  Nxc3 {[%clk 0:02:22]} 20. dxc3 {[%clk 0:01:38]}  Bxc3 {[%clk 0:02:20]} 21. e5 {[%clk 0:01:27]}  d2 {[%clk 0:02:15]} 22. Rxd2 {[%clk 0:01:20]}  Bxd2 {[%clk 0:02:14]} 23. Bxd2 {[%clk 0:01:12]}  Bxf1 {[%clk 0:02:11]} 24. Bxf1 {[%clk 0:01:09]}  Nh6 {[%clk 0:02:07]} 25. Qe2 {[%clk 0:01:01]}  O-O {[%clk 0:02:05]} 26. Be3 {[%clk 0:00:51]}  Nf5 {[%clk 0:02:03]} 27. Bc5 {[%clk 0:00:47]}  Qd5+ {[%clk 0:01:58]} 28. Bg2 {[%clk 0:00:43]}  Qc4 {[%clk 0:01:58]} 29. Qxc4 {[%clk 0:00:36]}  bxc4 {[%clk 0:01:59]} 30. g4 {[%clk 0:00:36]}  c3 {[%clk 0:01:58]} 31. Be4 {[%clk 0:00:31]}  Nh6 {[%clk 0:01:47]} 32. Bxe7 {[%clk 0:00:24]}  Rfc8 {[%clk 0:01:43]} 33. Bd6 {[%clk 0:00:19]}  Rb5 {[%clk 0:01:37]} 34. h3 {[%clk 0:00:16]}  c2 {[%clk 0:01:37]} 35. Bxc2 {[%clk 0:00:15]}  Rxc2 {[%clk 0:01:38]} 36. Ne4 {[%clk 0:00:15]}  Rd5 {[%clk 0:01:37]} 37. Nf6+ {[%clk 0:00:15]}  Kh8 {[%clk 0:01:33]} 38. Nxd5 {[%clk 0:00:16]}  Rc1+ {[%clk 0:01:25]} 39. Kg2 {[%clk 0:00:16]}  Rb1 {[%clk 0:01:26]} 40. Kf3 {[%clk 0:00:15]}  Ng8 {[%clk 0:01:06]} 41. Ke4 {[%clk 0:00:13]}  Kg7 {[%clk 0:01:06]} 42. Kd4 {[%clk 0:00:12]}  f6 {[%clk 0:01:04]} 43. exf6+ {[%clk 0:00:11]}  Kf7 {[%clk 0:01:04]} 44. Be7 {[%clk 0:00:09]}  Ke6 {[%clk 0:00:56]} 45. Nc7+ {[%clk 0:00:06]}  Kf7 {[%clk 0:00:48]} 46. Nd5 {[%clk 0:00:07]}  h5 {[%clk 0:00:34]} 47. f5 {[%clk 0:00:06]}  gxf5 {[%clk 0:00:27]} 48. gxf5 {[%clk 0:00:06]}  Nh6 {[%clk 0:00:22]} 49. Ke5 {[%clk 0:00:06]}  Re1+ {[%clk 0:00:21]} 50. Kd6 {[%clk 0:00:06]}  Nxf5+ {[%clk 0:00:21]} 51. Kd7 {[%clk 0:00:06]}  Rd1 {[%clk 0:00:21]} 52. Kc6 {[%clk 0:00:06]}  Nd4+ {[%clk 0:00:21]} 53. Kb6 {[%clk 0:00:05]}  Ne6 {[%clk 0:00:17]} 54. Nc7 {[%clk 0:00:05]}  Nxc7 {[%clk 0:00:15]} 55. Kxc7 {[%clk 0:00:06]}  Rh1 {[%clk 0:00:15]} 56. b5 {[%clk 0:00:06]}  Rxh3 {[%clk 0:00:15]} 57. b6 {[%clk 0:00:06]}  Rc3+ {[%clk 0:00:16]} 58. Kd7 {[%clk 0:00:05]}  Rb3 {[%clk 0:00:16]} 59. Kc6 {[%clk 0:00:06]}  h4 {[%clk 0:00:15]} 60. b7 {[%clk 0:00:06]}  h3 {[%clk 0:00:14]} 61. Bd6 {[%clk 0:00:06]}  Rc3+ {[%clk 0:00:13]} 62. Kd7 {[%clk 0:00:06]}  Rb3 {[%clk 0:00:11]} 63. b8=Q {[%clk 0:00:06]}  Rxb8 {[%clk 0:00:11]} 64. Bxb8 {[%clk 0:00:07]}  Kxf6 {[%clk 0:00:11]} 65. Bh2 {[%clk 0:00:07]}  Kf5 {[%clk 0:00:11]} 66. Kd6 {[%clk 0:00:07]}  Ke4 {[%clk 0:00:11]} 67. Ke6 {[%clk 0:00:07]}  Kf3 {[%clk 0:00:12]} 68. Kf6 {[%clk 0:00:07]}  Kg2 {[%clk 0:00:12]} 69. Bd6 {[%clk 0:00:08]}  h2 {[%clk 0:00:12]} 70. Bxh2 {[%clk 0:00:07]} 1/2-1/2


[Site "https://www.chess.com"]

[Event "Titled Tuesday Blitz November 08 Early 2022"]
[White "Tate, Alan"]
[Black "Fiedorek, Michal"]
[WhiteFideId "2401878"]
[BlackFideId "1199528"]
[WhiteElo "2179"]
[BlackElo "2201"]
[Result "0-1"]
[Round "03"]
[TimeControl "180+1"]
[Date "2022.11.09"]
[WhiteClock "0:00:01"]
[BlackClock "0:00:04"]

1. e4 {[%clk 0:02:36]}  c6 {[%clk 0:02:53]} 2. d4 {[%clk 0:02:35]}  d5 {[%clk 0:02:53]} 3. e5 {[%clk 0:02:35]}  Bf5 {[%clk 0:02:52]} 4. h4 {[%clk 0:02:35]}  h5 {[%clk 0:02:51]} 5. Bd3 {[%clk 0:02:36]}  Bxd3 {[%clk 0:02:48]} 6. Qxd3 {[%clk 0:02:37]}  e6 {[%clk 0:02:35]} 7. Bg5 {[%clk 0:02:35]}  Qa5+ {[%clk 0:02:32]} 8. Nd2 {[%clk 0:02:34]}  Qa6 {[%clk 0:02:31]} 9. c4 {[%clk 0:02:34]}  Nd7 {[%clk 0:02:23]} 10. Ngf3 {[%clk 0:02:30]}  Nh6 {[%clk 0:02:12]} 11. O-O {[%clk 0:02:20]}  Nf5 {[%clk 0:02:10]} 12. a3 {[%clk 0:02:07]}  Be7 {[%clk 0:02:05]} 13. Bxe7 {[%clk 0:02:02]}  Nxe7 {[%clk 0:02:02]} 14. b4 {[%clk 0:02:00]}  Nf5 {[%clk 0:01:41]} 15. a4 {[%clk 0:01:46]}  Qb6 {[%clk 0:01:34]} 16. a5 {[%clk 0:01:19]}  Qd8 {[%clk 0:01:20]} 17. a6 {[%clk 0:01:19]}  bxa6 {[%clk 0:00:49]} 18. Rxa6 {[%clk 0:00:58]}  Nxh4 {[%clk 0:00:48]} 19. Rxc6 {[%clk 0:00:45]}  Nf5 {[%clk 0:00:26]} 20. cxd5 {[%clk 0:00:41]}  Ne7 {[%clk 0:00:18]} 21. Rd6 {[%clk 0:00:04]}  Nxd5 {[%clk 0:00:17]} 22. Rxd5 {[%clk 0:00:02]}  exd5 {[%clk 0:00:17]} 23. e6 {[%clk 0:00:03]}  fxe6 {[%clk 0:00:15]} 24. Qg6+ {[%clk 0:00:02]}  Kf8 {[%clk 0:00:13]} 25. Ng5 {[%clk 0:00:01]}  Qe7 {[%clk 0:00:11]} 26. Nxe6+ {[%clk 0:00:01]}  Kg8 {[%clk 0:00:11]} 27. Nc7 {[%clk 0:00:01]}  Rf8 {[%clk 0:00:07]} 28. Nxd5 {[%clk 0:00:01]}  Qf7 {[%clk 0:00:06]} 29. Qd6 {[%clk 0:00:01]}  Nf6 {[%clk 0:00:05]} 30. Ne7+ {[%clk 0:00:01]}  Kh7 {[%clk 0:00:04]} 31. Qc5 {[%clk 0:00:01]}  Re8 {[%clk 0:00:04]} 0-1


[Site "https://www.chess.com"]